[Event "Early-Titled-Tuesday-Blitz-September-05-2023"]
[Site "Chess.com"]
[Date "2023.09.05"]
[Round "2"]
[White "Chernov_Mikhail"]
[Black "Virgo15"]
[Result "0-1"]
[WhiteElo "2412"]
[BlackElo "2689"]
[TimeControl "180+1"]
[EndTime "8:14:02 PDT"]
[Termination "Virgo15 won by resignation"]

1. d4 {[%clk 0:03:00.5]} 1... Nf6 {[%clk 0:02:58.8]} 2. Nc3 {[%clk 0:03:00.3]}
2... d5 {[%clk 0:02:58.1]} 3. Bf4 {[%clk 0:03:00.8]} 3... a6 {[%clk 0:02:57.6]}
4. e3 {[%clk 0:03:00.5]} 4... e6 {[%clk 0:02:56.4]} 5. g4 {[%clk 0:02:59.3]}
5... c5 {[%clk 0:02:56.2]} 6. g5 {[%clk 0:02:59.3]} 6... Ne4 {[%clk 0:02:54.2]}
7. Nxe4 {[%clk 0:02:49.1]} 7... dxe4 {[%clk 0:02:55.1]} 8. dxc5 {[%clk
0:02:49.7]} 8... Qa5+ {[%clk 0:02:50.9]} 9. c3 {[%clk 0:02:43.8]} 9... Qxc5
{[%clk 0:02:50.6]} 10. Qc2 {[%clk 0:02:44.4]} 10... e5 {[%clk 0:02:47.7]} 11.
Bg3 {[%clk 0:02:44.2]} 11... Bf5 {[%clk 0:02:47.4]} 12. Bg2 {[%clk 0:02:44.4]}
12... Nc6 {[%clk 0:02:31.2]} 13. Bxe4 {[%clk 0:02:31.6]} 13... Nb4 {[%clk
0:02:31.3]} 14. Qa4+ {[%clk 0:02:14.3]} 14... b5 {[%clk 0:02:28.1]} 15. Qxb4
{[%clk 0:02:07.2]} 15... Qxb4 {[%clk 0:02:27.4]} 16. cxb4 {[%clk 0:02:08.1]}
16... Bxe4 {[%clk 0:02:22.1]} 17. f3 {[%clk 0:02:07.4]} 17... Bxb4+ {[%clk
0:02:22.5]} 18. Ke2 {[%clk 0:02:07.1]} 18... Bd5 {[%clk 0:02:20.2]} 19. b3
{[%clk 0:02:00.2]} 19... f6 {[%clk 0:02:18.6]} 20. h4 {[%clk 0:01:58.4]} 20...
Rc8 {[%clk 0:02:17.8]} 21. Kd3 {[%clk 0:01:50.9]} 21... Kf7 {[%clk 0:02:16.6]}
22. Nh3 {[%clk 0:01:46.8]} 22... Rhd8 {[%clk 0:02:16.9]} 23. Ke2 {[%clk
0:01:12.9]} 23... Rc2+ {[%clk 0:02:13.1]} 24. Kf1 {[%clk 0:01:13.4]} 24... Bxf3
{[%clk 0:02:11.3]} 0-1

[Event "Early-Titled-Tuesday-Blitz-September-05-2023"]
[Site "Chess.com"]
[Date "2023.09.05"]
[Round "2"]
[White "Khromkin"]
[Black "The_Machine04"]
[Result "1-0"]
[WhiteElo "2418"]
[BlackElo "2602"]
[TimeControl "180+1"]
[EndTime "8:14:16 PDT"]
[Termination "Khromkin won by resignation"]

1. d4 {[%clk 0:02:55.8]} 1... d6 {[%clk 0:02:59.7]} 2. c4 {[%clk 0:02:54.6]}
2... e5 {[%clk 0:02:58.5]} 3. Nf3 {[%clk 0:02:54.8]} 3... e4 {[%clk 0:02:58]} 4.
Nfd2 {[%clk 0:02:54.2]} 4... f5 {[%clk 0:02:58.3]} 5. e3 {[%clk 0:02:53.8]} 5...
Nf6 {[%clk 0:02:58.2]} 6. Nc3 {[%clk 0:02:54.4]} 6... c5 {[%clk 0:02:58.5]} 7.
f3 {[%clk 0:02:53.4]} 7... cxd4 {[%clk 0:02:56.6]} 8. exd4 {[%clk 0:02:51.2]}
8... e3 {[%clk 0:02:56.7]} 9. Nb3 {[%clk 0:02:51]} 9... f4 {[%clk 0:02:56.9]}
10. Bd3 {[%clk 0:02:46.7]} 10... Nh5 {[%clk 0:02:55.4]} 11. Qc2 {[%clk
0:02:14.7]} 11... Qh4+ {[%clk 0:02:52.6]} 12. Kd1 {[%clk 0:02:12.8]} 12... Nc6
{[%clk 0:02:51.2]} 13. Bxh7 {[%clk 0:02:07.1]} 13... Ng3 {[%clk 0:02:45.6]} 14.
Bg6+ {[%clk 0:01:56]} 14... Kd8 {[%clk 0:02:45.5]} 15. Re1 {[%clk 0:01:51.4]}
15... Qxh2 {[%clk 0:02:44.2]} 16. Nd5 {[%clk 0:01:42.9]} 16... Be6 {[%clk
0:02:37.4]} 17. Nxf4 {[%clk 0:01:39.3]} 17... Bg8 {[%clk 0:02:10.1]} 18. Bxe3
{[%clk 0:01:38.1]} 18... Nb4 {[%clk 0:01:54.8]} 19. Qd2 {[%clk 0:01:35.9]} 19...
a5 {[%clk 0:01:49.7]} 20. a3 {[%clk 0:01:34.4]} 20... Bxc4 {[%clk 0:01:48.6]}
21. Nxa5 {[%clk 0:01:30.1]} 21... Nd5 {[%clk 0:01:38]} 22. Nxc4 {[%clk
0:01:25.2]} 1-0

[Event "Early-Titled-Tuesday-Blitz-September-05-2023"]
[Site "Chess.com"]
[Date "2023.09.05"]
[Round "2"]
[White "ashwanitiwari"]
[Black "Battever"]
[Result "0-1"]
[WhiteElo "2140"]
[BlackElo "2468"]
[TimeControl "180+1"]
[EndTime "8:14:30 PDT"]
[Termination "Battever won by resignation"]

1. b3 {[%clk 0:03:00.9]} 1... e5 {[%clk 0:02:58.1]} 2. Bb2 {[%clk 0:03:00.3]}
2... d6 {[%clk 0:02:58.5]} 3. e3 {[%clk 0:03:00.5]} 3... Nf6 {[%clk 0:02:58.4]}
4. d4 {[%clk 0:01:57.8]} 4... Nbd7 {[%clk 0:02:55.4]} 5. Nf3 {[%clk 0:01:55.7]}
5... e4 {[%clk 0:02:54.7]} 6. Nfd2 {[%clk 0:01:54.9]} 6... d5 {[%clk 0:02:48.4]}
7. c4 {[%clk 0:01:54.7]} 7... c6 {[%clk 0:02:48.9]} 8. Nc3 {[%clk 0:01:54.5]}
8... a6 {[%clk 0:02:49.5]} 9. Be2 {[%clk 0:01:53.8]} 9... Bd6 {[%clk 0:02:49.7]}
10. Qc2 {[%clk 0:01:51.6]} 10... O-O {[%clk 0:02:46.6]} 11. h3 {[%clk
0:01:49.4]} 11... b5 {[%clk 0:02:43.2]} 12. cxd5 {[%clk 0:01:46.2]} 12... cxd5
{[%clk 0:02:41.9]} 13. O-O {[%clk 0:01:43.7]} 13... Bb7 {[%clk 0:02:41.8]} 14.
f3 {[%clk 0:01:43.3]} 14... Rc8 {[%clk 0:02:39.5]} 15. fxe4 {[%clk 0:01:43.1]}
15... Nxe4 {[%clk 0:02:39.3]} 16. Ndxe4 {[%clk 0:01:42.1]} 16... dxe4 {[%clk
0:02:40.2]} 17. Qd2 {[%clk 0:01:38.8]} 17... Qg5 {[%clk 0:02:39]} 18. Bg4 {[%clk
0:01:24.3]} 18... f5 {[%clk 0:02:32]} 19. Bd1 {[%clk 0:01:16.2]} 19... Qg3
{[%clk 0:02:29.3]} 20. Ne2 {[%clk 0:01:16.8]} 20... Qh2+ {[%clk 0:02:16]} 21.
Kf2 {[%clk 0:01:16.1]} 21... f4 {[%clk 0:02:10.5]} 22. exf4 {[%clk 0:01:12.7]}
22... Rxf4+ {[%clk 0:02:09.3]} 23. Nxf4 {[%clk 0:01:09.9]} 23... Bxf4 {[%clk
0:02:10.2]} 24. Qe2 {[%clk 0:01:04.2]} 24... e3+ {[%clk 0:02:03.5]} 25. Ke1
{[%clk 0:01:02.1]} 25... Bg3+ {[%clk 0:02:03.1]} 0-1

[Event "Early-Titled-Tuesday-Blitz-September-05-2023"]
[Site "Chess.com"]
[Date "2023.09.05"]
[Round "2"]
[White "WilsonPalencia21"]
[Black "spotbet"]
[Result "1-0"]
[WhiteElo "2529"]
[BlackElo "2340"]
[TimeControl "180+1"]
[EndTime "8:15:03 PDT"]
[Termination "WilsonPalencia21 won by resignation"]

1. d4 {[%clk 0:03:00.9]} 1... Nf6 {[%clk 0:02:29.9]} 2. Nf3 {[%clk 0:02:55.2]}
2... e6 {[%clk 0:02:30.1]} 3. c4 {[%clk 0:02:55.2]} 3... Bb4+ {[%clk 0:02:28.6]}
4. Nbd2 {[%clk 0:02:55]} 4... O-O {[%clk 0:02:28.3]} 5. a3 {[%clk 0:02:51.6]}
5... Be7 {[%clk 0:02:28.5]} 6. e4 {[%clk 0:02:51.4]} 6... d5 {[%clk 0:02:28.2]}
7. e5 {[%clk 0:02:51.6]} 7... Nfd7 {[%clk 0:02:27.9]} 8. Qc2 {[%clk 0:02:51.3]}
8... c5 {[%clk 0:02:28.2]} 9. Bd3 {[%clk 0:02:49.7]} 9... g6 {[%clk 0:02:27.3]}
10. h4 {[%clk 0:02:49.1]} 10... Nc6 {[%clk 0:02:27.8]} 11. dxc5 {[%clk
0:02:39.2]} 11... Ndxe5 {[%clk 0:02:27.3]} 12. Nxe5 {[%clk 0:02:38.6]} 12...
Nxe5 {[%clk 0:02:27.3]} 13. b4 {[%clk 0:02:35.7]} 13... Bf6 {[%clk 0:02:22.3]}
14. Rb1 {[%clk 0:02:35.6]} 14... Nxd3+ {[%clk 0:02:21.8]} 15. Qxd3 {[%clk
0:02:35.6]} 15... dxc4 {[%clk 0:02:22.2]} 16. Qxd8 {[%clk 0:02:35.2]} 16... Rxd8
{[%clk 0:02:21.9]} 17. Nxc4 {[%clk 0:02:35.4]} 17... Rd4 {[%clk 0:02:15.4]} 18.
Ne3 {[%clk 0:02:27.7]} 18... Rxh4 {[%clk 0:02:15.4]} 19. Rxh4 {[%clk 0:02:24.8]}
19... Bxh4 {[%clk 0:02:16.3]} 20. Bb2 {[%clk 0:02:24]} 20... Bd7 {[%clk
0:02:11.4]} 21. Nc4 {[%clk 0:02:23.3]} 21... Bc6 {[%clk 0:02:10.8]} 22. Ne5
{[%clk 0:02:22.5]} 22... Bxg2 {[%clk 0:02:07.4]} 23. Ke2 {[%clk 0:02:19.7]}
23... Rd8 {[%clk 0:02:04.4]} 24. f3 {[%clk 0:02:14.9]} 24... Bf6 {[%clk
0:02:03.3]} 25. Rg1 {[%clk 0:02:03.6]} 25... Bh3 {[%clk 0:02:02.9]} 26. Nc6
{[%clk 0:02:00.6]} 26... bxc6 {[%clk 0:01:52.9]} 27. Bxf6 {[%clk 0:02:00.6]}
27... Rd5 {[%clk 0:01:50.8]} 28. Rc1 {[%clk 0:01:59]} 28... Bf5 {[%clk
0:01:48.1]} 29. Rc3 {[%clk 0:01:55.8]} 29... h5 {[%clk 0:01:33.6]} 30. f4 {[%clk
0:01:52.2]} 30... Kf8 {[%clk 0:01:31.7]} 31. b5 {[%clk 0:01:52]} 31... Bg4+
{[%clk 0:01:22.7]} 32. Ke3 {[%clk 0:01:50.7]} 32... Bd1 {[%clk 0:01:14.9]} 33.
bxc6 {[%clk 0:01:41.6]} 33... Ba4 {[%clk 0:01:14]} 34. c7 {[%clk 0:01:41.4]}
34... Bd7 {[%clk 0:01:14.2]} 35. Rb3 {[%clk 0:01:38.1]} 35... Rxc5 {[%clk
0:01:14.1]} 36. Rb8+ {[%clk 0:01:37.6]} 1-0

[Event "Early-Titled-Tuesday-Blitz-September-05-2023"]
[Site "Chess.com"]
[Date "2023.09.05"]
[Round "2"]
[White "Bigfish1995"]
[Black "play1ngtheangel"]
[Result "1-0"]
[WhiteElo "3101"]
[BlackElo "2674"]
[TimeControl "180+1"]
[EndTime "8:15:07 PDT"]
[Termination "Bigfish1995 won by resignation"]

1. a3 {[%clk 0:03:00.9]} 1... e5 {[%clk 0:02:56.1]} 2. Ra2 {[%clk 0:03:01.3]}
2... Nf6 {[%clk 0:02:53]} 3. Ra1 {[%clk 0:03:01.5]} 3... d5 {[%clk 0:02:53.2]}
4. Ra2 {[%clk 0:03:01.6]} 4... Bc5 {[%clk 0:02:53.1]} 5. e3 {[%clk 0:03:00.2]}
5... O-O {[%clk 0:02:53.5]} 6. b4 {[%clk 0:02:59.8]} 6... Bb6 {[%clk 0:02:53.2]}
7. c4 {[%clk 0:03:00]} 7... dxc4 {[%clk 0:02:53.2]} 8. Bxc4 {[%clk 0:03:00]}
8... Be6 {[%clk 0:02:49.2]} 9. Bxe6 {[%clk 0:02:58.3]} 9... fxe6 {[%clk
0:02:50.1]} 10. Nc3 {[%clk 0:02:58.5]} 10... Qd3 {[%clk 0:02:37.3]} 11. Nf3
{[%clk 0:02:33.4]} 11... Ng4 {[%clk 0:02:26.6]} 12. Qc2 {[%clk 0:02:30.1]} 12...
Qd8 {[%clk 0:02:20.6]} 13. h3 {[%clk 0:02:24]} 13... Nh6 {[%clk 0:02:12.9]} 14.
Nxe5 {[%clk 0:02:14.1]} 14... Qg5 {[%clk 0:02:02.2]} 15. Qe4 {[%clk 0:02:14.4]}
15... Nc6 {[%clk 0:01:47.4]} 16. Nxc6 {[%clk 0:02:11.3]} 16... bxc6 {[%clk
0:01:47.8]} 17. O-O {[%clk 0:02:10.9]} 17... Nf5 {[%clk 0:01:48.3]} 18. a4
{[%clk 0:01:50.6]} 18... a5 {[%clk 0:01:41.8]} 19. Ba3 {[%clk 0:01:50.4]} 19...
Rf6 {[%clk 0:01:36.6]} 20. Qxc6 {[%clk 0:01:45.7]} 20... Rd8 {[%clk 0:00:59.5]}
21. Ne4 {[%clk 0:01:44.5]} 21... Ne7 {[%clk 0:00:51]} 22. Qxb6 {[%clk
0:01:34.4]} 22... Qd5 {[%clk 0:00:43.1]} 23. Nxf6+ {[%clk 0:01:32.6]} 23... gxf6
{[%clk 0:00:41.2]} 24. Qxc7 {[%clk 0:01:32.9]} 24... Qxg2+ {[%clk 0:00:37.1]}
1-0

[Event "Early-Titled-Tuesday-Blitz-September-05-2023"]
[Site "Chess.com"]
[Date "2023.09.05"]
[Round "2"]
[White "Truequitos"]
[Black "chess123456s"]
[Result "0-1"]
[WhiteElo "2415"]
[BlackElo "2664"]
[TimeControl "180+1"]
[EndTime "8:15:12 PDT"]
[Termination "chess123456s won by resignation"]

1. e4 {[%clk 0:02:58.5]} 1... e5 {[%clk 0:02:59.4]} 2. Nf3 {[%clk 0:02:57.3]}
2... Nc6 {[%clk 0:02:59.1]} 3. d4 {[%clk 0:02:56.2]} 3... exd4 {[%clk
0:02:58.6]} 4. Bc4 {[%clk 0:02:56.9]} 4... Nf6 {[%clk 0:02:57.7]} 5. e5 {[%clk
0:02:56.9]} 5... d5 {[%clk 0:02:57.7]} 6. Bb5 {[%clk 0:02:56.6]} 6... Ne4 {[%clk
0:02:57.8]} 7. Nxd4 {[%clk 0:02:54.7]} 7... Bc5 {[%clk 0:02:57.6]} 8. O-O {[%clk
0:02:46.6]} 8... O-O {[%clk 0:02:56.4]} 9. Nxc6 {[%clk 0:02:16.7]} 9... bxc6
{[%clk 0:02:49.2]} 10. Bxc6 {[%clk 0:02:17.6]} 10... Ba6 {[%clk 0:02:48.7]} 11.
Be3 {[%clk 0:01:49.7]} 11... Bxe3 {[%clk 0:02:40.4]} 12. fxe3 {[%clk 0:01:47.3]}
12... Bxf1 {[%clk 0:02:40.3]} 13. Bxa8 {[%clk 0:01:46.7]} 13... Bc4 {[%clk
0:02:09.5]} 14. Bc6 {[%clk 0:01:39.6]} 14... Qg5 {[%clk 0:02:08.7]} 15. Qf3
{[%clk 0:01:33.3]} 15... Qxe5 {[%clk 0:02:07.2]} 16. c3 {[%clk 0:01:19.1]} 16...
Qd6 {[%clk 0:01:39.8]} 17. Ba4 {[%clk 0:01:15.3]} 17... Qa6 {[%clk 0:01:37.1]}
18. Bc2 {[%clk 0:01:10.4]} 18... Be2 {[%clk 0:01:28.6]} 19. Qf4 {[%clk
0:01:07.9]} 19... Qb6 {[%clk 0:01:27.7]} 20. b3 {[%clk 0:00:57.5]} 20... g5
{[%clk 0:01:23.9]} 0-1

[Event "Early-Titled-Tuesday-Blitz-September-05-2023"]
[Site "Chess.com"]
[Date "2023.09.05"]
[Round "2"]
[White "MikeSailer"]
[Black "Haykoooo0o"]
[Result "0-1"]
[WhiteElo "2171"]
[BlackElo "2466"]
[TimeControl "180+1"]
[EndTime "8:15:25 PDT"]
[Termination "Haykoooo0o won by resignation"]

1. d4 {[%clk 0:03:00.4]} 1... Nf6 {[%clk 0:02:59.9]} 2. Nc3 {[%clk 0:02:56.9]}
2... d5 {[%clk 0:02:59.9]} 3. Bf4 {[%clk 0:02:57.1]} 3... c6 {[%clk 0:02:53.9]}
4. Nf3 {[%clk 0:02:54.9]} 4... Bf5 {[%clk 0:02:51.2]} 5. Ne5 {[%clk 0:02:51.4]}
5... Nbd7 {[%clk 0:02:48.4]} 6. e3 {[%clk 0:02:51.1]} 6... Nxe5 {[%clk
0:02:45.8]} 7. dxe5 {[%clk 0:02:49.7]} 7... Nd7 {[%clk 0:02:44.1]} 8. g4 {[%clk
0:02:47]} 8... Bg6 {[%clk 0:02:43.8]} 9. h4 {[%clk 0:02:46.8]} 9... h6 {[%clk
0:02:39.9]} 10. Bd3 {[%clk 0:02:46.7]} 10... Bxd3 {[%clk 0:02:39.1]} 11. Qxd3
{[%clk 0:02:47]} 11... e6 {[%clk 0:02:39.4]} 12. O-O-O {[%clk 0:02:46.6]} 12...
a5 {[%clk 0:02:32.5]} 13. g5 {[%clk 0:02:46]} 13... Nc5 {[%clk 0:02:20.7]} 14.
Qd4 {[%clk 0:02:31]} 14... a4 {[%clk 0:02:11.5]} 15. gxh6 {[%clk 0:02:21.9]}
15... gxh6 {[%clk 0:01:55.4]} 16. Rdg1 {[%clk 0:02:21]} 16... a3 {[%clk
0:01:53.8]} 17. b3 {[%clk 0:02:20.5]} 17... b5 {[%clk 0:01:40.6]} 18. Rg4 {[%clk
0:02:03.5]} 18... b4 {[%clk 0:01:40]} 19. Nd1 {[%clk 0:01:42.3]} 19... Ne4
{[%clk 0:01:40]} 20. f3 {[%clk 0:01:37.8]} 20... c5 {[%clk 0:01:25.9]} 21. Qd3
{[%clk 0:01:30.6]} 21... c4 {[%clk 0:01:26.1]} 22. Qe2 {[%clk 0:01:22.7]} 22...
cxb3 {[%clk 0:01:22.4]} 23. cxb3 {[%clk 0:01:19]} 23... Rc8+ {[%clk 0:01:20.6]}
24. Kb1 {[%clk 0:01:17.9]} 24... Qc7 {[%clk 0:01:16.9]} 25. Qb5+ {[%clk
0:01:01]} 25... Kd8 {[%clk 0:01:16]} 0-1

[Event "Early-Titled-Tuesday-Blitz-September-05-2023"]
[Site "Chess.com"]
[Date "2023.09.05"]
[Round "2"]
[White "PattyCastillo"]
[Black "Rosh1610"]
[Result "0-1"]
[WhiteElo "1998"]
[BlackElo "2441"]
[TimeControl "180+1"]
[EndTime "8:15:27 PDT"]
[Termination "Rosh1610 won by resignation"]

1. d4 {[%clk 0:03:00]} 1... Nf6 {[%clk 0:02:59.7]} 2. Nf3 {[%clk 0:03:00]} 2...
e6 {[%clk 0:03:00.2]} 3. e3 {[%clk 0:03:00.3]} 3... d5 {[%clk 0:03:00.7]} 4. Bd3
{[%clk 0:03:00.8]} 4... Bd6 {[%clk 0:03:01.3]} 5. O-O {[%clk 0:03:00.8]} 5...
O-O {[%clk 0:03:01.3]} 6. b3 {[%clk 0:03:01.3]} 6... Ne4 {[%clk 0:03:00.3]} 7.
Bb2 {[%clk 0:03:01.3]} 7... f5 {[%clk 0:03:00.9]} 8. c4 {[%clk 0:03:01.7]} 8...
b6 {[%clk 0:03:01.5]} 9. Nbd2 {[%clk 0:02:59.9]} 9... Bb7 {[%clk 0:03:01.3]} 10.
Qc2 {[%clk 0:02:58.4]} 10... Nd7 {[%clk 0:03:00.2]} 11. Rfd1 {[%clk 0:02:55.9]}
11... g5 {[%clk 0:02:56]} 12. Ne5 {[%clk 0:02:56.2]} 12... Bxe5 {[%clk
0:02:51.9]} 13. dxe5 {[%clk 0:02:55.9]} 13... g4 {[%clk 0:02:52.5]} 14. cxd5
{[%clk 0:02:41.4]} 14... exd5 {[%clk 0:02:50.2]} 15. e6 {[%clk 0:02:31.3]} 15...
Ndf6 {[%clk 0:02:46.3]} 16. Rac1 {[%clk 0:02:18.4]} 16... c5 {[%clk 0:02:44.3]}
17. Be5 {[%clk 0:02:04.8]} 17... Qe7 {[%clk 0:02:38.7]} 18. Nxe4 {[%clk
0:01:55.3]} 18... fxe4 {[%clk 0:02:38]} 19. Be2 {[%clk 0:01:50.3]} 19... Qxe6
{[%clk 0:02:37]} 20. Qb2 {[%clk 0:01:45.3]} 20... h5 {[%clk 0:02:31.7]} 21. Rd2
{[%clk 0:00:43.8]} 21... Nd7 {[%clk 0:02:30.7]} 22. Bf4 {[%clk 0:00:39.3]} 22...
Rae8 {[%clk 0:02:18.1]} 23. Rcd1 {[%clk 0:00:38.7]} 23... Kh7 {[%clk 0:02:17.4]}
24. Bb5 {[%clk 0:00:38.4]} 24... Re7 {[%clk 0:02:14.7]} 25. Bg5 {[%clk
0:00:36.4]} 25... Ref7 {[%clk 0:02:13.8]} 26. Bh4 {[%clk 0:00:35.2]} 26... Ne5
{[%clk 0:02:11.3]} 27. Bg3 {[%clk 0:00:33.2]} 27... Ng6 {[%clk 0:02:09.8]} 28.
Rxd5 {[%clk 0:00:23.1]} 28... Bxd5 {[%clk 0:02:07.6]} 29. Rxd5 {[%clk
0:00:19.4]} 29... Qxd5 {[%clk 0:02:06.9]} 30. Bc4 {[%clk 0:00:20.1]} 30... Qd1+
{[%clk 0:02:06.5]} 0-1

[Event "Early-Titled-Tuesday-Blitz-September-05-2023"]
[Site "Chess.com"]
[Date "2023.09.05"]
[Round "2"]
[White "AlphaPerseii"]
[Black "Aygehovit1992"]
[Result "0-1"]
[WhiteElo "2418"]
[BlackElo "2702"]
[TimeControl "180+1"]
[EndTime "8:15:28 PDT"]
[Termination "Aygehovit1992 won by resignation"]

1. e4 {[%clk 0:03:00.9]} 1... c5 {[%clk 0:02:59.2]} 2. Nf3 {[%clk 0:03:00]} 2...
d6 {[%clk 0:02:59.8]} 3. d4 {[%clk 0:03:00.7]} 3... cxd4 {[%clk 0:03:00.7]} 4.
Qxd4 {[%clk 0:03:01.2]} 4... Nc6 {[%clk 0:02:58]} 5. Bb5 {[%clk 0:03:01]} 5...
Bd7 {[%clk 0:02:58.5]} 6. Qd3 {[%clk 0:03:01.4]} 6... g6 {[%clk 0:02:57.3]} 7.
c4 {[%clk 0:03:00.4]} 7... Bg7 {[%clk 0:02:57.3]} 8. Nc3 {[%clk 0:02:58.8]} 8...
Nf6 {[%clk 0:02:58]} 9. h3 {[%clk 0:02:59.2]} 9... O-O {[%clk 0:02:58.4]} 10.
O-O {[%clk 0:02:57.7]} 10... Rc8 {[%clk 0:02:58.7]} 11. Be3 {[%clk 0:02:35.6]}
11... a6 {[%clk 0:02:52.3]} 12. Bxc6 {[%clk 0:02:27.3]} 12... Bxc6 {[%clk
0:02:53.2]} 13. Rac1 {[%clk 0:01:56.8]} 13... b5 {[%clk 0:02:46.6]} 14. cxb5
{[%clk 0:01:47.1]} 14... axb5 {[%clk 0:02:47.5]} 15. Nd5 {[%clk 0:01:34]} 15...
Bxd5 {[%clk 0:02:32.5]} 16. exd5 {[%clk 0:01:32.7]} 16... Rxc1 {[%clk
0:02:32.6]} 17. Rxc1 {[%clk 0:01:32.3]} 17... Qa8 {[%clk 0:02:33.5]} 18. Rc6
{[%clk 0:01:05]} 18... Qxa2 {[%clk 0:02:29]} 19. Qxb5 {[%clk 0:01:05.3]} 19...
Nxd5 {[%clk 0:02:25.3]} 20. Bd4 {[%clk 0:00:55.3]} 20... Bxd4 {[%clk 0:02:11.7]}
21. Nxd4 {[%clk 0:00:56.2]} 21... Qb1+ {[%clk 0:02:11.6]} 22. Kh2 {[%clk
0:00:56.3]} 22... Qe4 {[%clk 0:02:11.5]} 23. Rc4 {[%clk 0:00:38.1]} 23... Qf4+
{[%clk 0:01:41.4]} 24. Kg1 {[%clk 0:00:36.2]} 24... Ra8 {[%clk 0:01:40.8]} 25.
g3 {[%clk 0:00:30.4]} 25... Ra1+ {[%clk 0:01:31.1]} 26. Kg2 {[%clk 0:00:30.8]}
26... Ne3+ {[%clk 0:01:26.7]} 0-1

[Event "Early-Titled-Tuesday-Blitz-September-05-2023"]
[Site "Chess.com"]
[Date "2023.09.05"]
[Round "2"]
[White "pouya21"]
[Black "viktorgen2021"]
[Result "0-1"]
[WhiteElo "2819"]
[BlackElo "2448"]
[TimeControl "180+1"]
[EndTime "8:15:35 PDT"]
[Termination "viktorgen2021 won by resignation"]

1. e4 {[%clk 0:03:00.9]} 1... g6 {[%clk 0:02:55.1]} 2. d4 {[%clk 0:03:00.6]}
2... Bg7 {[%clk 0:02:55.5]} 3. Nc3 {[%clk 0:03:00.7]} 3... d6 {[%clk 0:02:54]}
4. Nf3 {[%clk 0:02:55.8]} 4... Nf6 {[%clk 0:02:53.8]} 5. Be2 {[%clk 0:02:56.2]}
5... O-O {[%clk 0:02:54.4]} 6. O-O {[%clk 0:02:56.8]} 6... c6 {[%clk 0:02:54.5]}
7. a4 {[%clk 0:02:54.2]} 7... a5 {[%clk 0:02:52.5]} 8. h3 {[%clk 0:02:48.5]}
8... Qc7 {[%clk 0:02:52.7]} 9. Bf4 {[%clk 0:02:48.9]} 9... Nbd7 {[%clk
0:02:49.4]} 10. e5 {[%clk 0:02:48.6]} 10... Nd5 {[%clk 0:02:40.3]} 11. exd6
{[%clk 0:02:28.2]} 11... exd6 {[%clk 0:02:38.7]} 12. Nxd5 {[%clk 0:02:14.7]}
12... cxd5 {[%clk 0:02:39.6]} 13. c3 {[%clk 0:02:14]} 13... Nf6 {[%clk
0:02:36.2]} 14. Nd2 {[%clk 0:02:10.4]} 14... Qb6 {[%clk 0:02:31.4]} 15. Qb3
{[%clk 0:02:08.2]} 15... Qd8 {[%clk 0:02:21.6]} 16. Bf3 {[%clk 0:02:07.2]} 16...
Be6 {[%clk 0:02:19.5]} 17. Qxb7 {[%clk 0:01:52]} 17... Rb8 {[%clk 0:02:17.6]}
18. Qc6 {[%clk 0:01:52.6]} 18... Rb6 {[%clk 0:02:10.7]} 19. Qb5 {[%clk
0:01:26.1]} 19... Rxb5 {[%clk 0:02:08.9]} 20. axb5 {[%clk 0:01:27]} 20... Qb6
{[%clk 0:02:06.1]} 21. Be2 {[%clk 0:01:23.2]} 21... Bd7 {[%clk 0:02:04.9]} 22.
Ra2 {[%clk 0:01:14.7]} 22... Re8 {[%clk 0:02:03.5]} 23. Bd3 {[%clk 0:01:13.6]}
23... Bxb5 {[%clk 0:02:02.1]} 24. Bxb5 {[%clk 0:01:13.8]} 24... Qxb5 {[%clk
0:02:03]} 25. Bxd6 {[%clk 0:01:14.2]} 25... Ne4 {[%clk 0:01:58.6]} 26. Nxe4
{[%clk 0:01:13]} 26... dxe4 {[%clk 0:01:50.9]} 27. Bf4 {[%clk 0:01:09.8]} 27...
Bf6 {[%clk 0:01:38.5]} 28. Rfa1 {[%clk 0:01:09]} 28... Ra8 {[%clk 0:01:38.2]}
29. Bc7 {[%clk 0:00:57.6]} 29... a4 {[%clk 0:01:29.5]} 30. Bf4 {[%clk
0:00:58.3]} 30... Bg5 {[%clk 0:01:29.5]} 31. Bxg5 {[%clk 0:00:54.6]} 31... Qxg5
{[%clk 0:01:29.4]} 32. Rxa4 {[%clk 0:00:55.1]} 32... Rxa4 {[%clk 0:01:29.2]} 33.
Rxa4 {[%clk 0:00:56]} 33... Qc1+ {[%clk 0:01:29.5]} 34. Kh2 {[%clk 0:00:56.1]}
34... Qxb2 {[%clk 0:01:27.4]} 35. Kg1 {[%clk 0:00:54.6]} 35... Qxc3 {[%clk
0:01:27.2]} 36. d5 {[%clk 0:00:54.1]} 36... Qe1+ {[%clk 0:01:26.1]} 37. Kh2
{[%clk 0:00:52.9]} 37... e3 {[%clk 0:01:22]} 38. fxe3 {[%clk 0:00:50.2]} 0-1